bitfinex/quotes_BTCUSD_20220306
["timestamp","ask_amount","ask_price","bid_price","bid_amount"]
[1646573727088,0.00100937,38902.0,38895.0,0.02593]
[1646573727288,0.05459,38904.0,38895.0,0.32593]
[1646573727489,0.05459,38904.0,38898.0,0.01354296]
[1646573727688,0.05459,38904.0,38903.0,0.17593]
[1646573727889,0.00100939,38905.0,38903.0,0.47593]
[1646573728088,0.00100939,38905.0,38904.0,0.32593]
[1646573728292,0.00025228,38916.0,38906.0,0.02593]
[1646573728490,0.18709435,38920.0,38906.0,0.32593]
[1646573728690,0.19819643,38914.0,38906.0,0.32593]
[1646573728889,0.18709435,38920.0,38904.0,0.3]
[1646573728890,0.00100929,38912.0,38904.0,0.3]
[1646573729093,0.00100929,38912.0,38901.0,0.32593]
[1646573729490,0.21762522,38903.0,38901.0,0.3]
[1646573729693,0.21762522,38903.0,38897.0,0.4773]
[1646573729889,0.21762522,38903.0,38897.0,0.00011148]
[1646573730945,0.21762522,38903.0,38895.0,0.006]
[1646573731141,0.15805354,38899.0,38897.0,0.00024474]
[1646573731341,0.15805354,38899.0,38898.0,0.14]
[1646573731541,0.21762522,38903.0,38898.0,0.14]
[1646573731742,0.21762522,38903.0,38897.0,0.00024474]
[1646573732143,0.21762522,38903.0,38894.0,0.006]
[1646573732344,0.21762522,38903.0,38897.0,0.00024474]
[1646573733242,0.21762522,38903.0,38893.0,0.3]
[1646573733447,0.19438761,38900.0,38897.0,0.00023687]
[1646573733943,0.21762522,38903.0,38897.0,0.00023687]
[1646573734618,0.21762522,38903.0,38892.0,0.304]
[1646573734916,0.15718733,38898.0,38897.0,0.00023687]
[1646573735115,0.15718733,38898.0,38897.0,0.14023687]
[1646573735516,0.00023681,38907.0,38897.0,0.14023687]
[1646573735715,0.154589,38910.0,38890.0,0.02593]
[1646573735716,0.154589,38910.0,38890.0,0.12593]
[1646573735916,0.15328358,38903.0,38896.0,0.00323687]
[1646573736118,0.00023681,38907.0,38896.0,0.00323687]
[1646573736517,0.17462026,38907.0,38896.0,0.00323687]
[1646573736917,0.17438345,38907.0,38896.0,0.003]
[1646573737117,0.21011065,38904.0,38897.0,0.00023739]
[1646573738144,0.21011065,38904.0,38894.0,0.003]
[1646573738351,0.21011065,38904.0,38897.0,0.00023739]
[1646573739545,0.00023733,38907.0,38897.0,0.00023739]
[1646573739747,0.08343463,38914.0,38896.0,0.7867]
[1646573739948,0.00094907,38917.0,38899.0,0.02593]
[1646573739949,0.00023733,38907.0,38899.0,0.02593]
[1646573740346,0.00023733,38907.0,38899.0,0.09024018]
[1646573740546,0.36251941,38909.0,38897.0,0.12593]
[1646573740747,0.00023729,38907.0,38897.0,0.02616735]
[1646573741147,0.1587229,38903.0,38897.0,0.02616735]
[1646573741452,0.1587229,38903.0,38897.0,0.00023735]
[1646573741899,0.1587229,38903.0,38897.0,0.00023734]
[1646573742599,0.00023728,38907.0,38897.0,0.00023734]
[1646573742899,0.3,38911.0,38896.0,0.007]
[1646573743200,0.00023729,38907.0,38897.0,0.00023735]
[1646573743399,0.16500799,38904.0,38897.0,0.00023735]
[1646573743599,0.00023729,38907.0,38897.0,0.00023735]
[1646573744201,0.17191888,38902.0,38896.0,0.009]
[1646573744400,0.17191888,38902.0,38897.0,0.00024362]
[1646573745201,0.00024356,38907.0,38897.0,0.00024362]
[1646573745402,0.3,38914.0,38892.0,0.090253]
[1646573745656,0.00024355,38907.0,38897.0,0.00024361]
[1646573746256,0.21506485,38905.0,38897.0,0.00024361]
[1646573746559,0.21506485,38905.0,38893.0,0.008]
[1646573746560,0.1506406,38904.0,38893.0,0.008]
[1646573746755,0.21506485,38905.0,38897.0,0.00024362]
[1646573747660,0.2120626,38907.0,38897.0,0.00024362]
[1646573747959,0.3,38914.0,38897.0,0.00024419]
[1646573748159,0.00024413,38907.0,38897.0,0.00024419]
[1646573748759,0.00024413,38907.0,38899.0,0.064311]
[1646573748957,0.05391119,38909.0,38900.0,0.02593]
[1646573749160,0.00024413,38907.0,38899.0,0.064311]
[1646573749999,0.36489251,38910.0,38899.0,0.814311]
[1646573750203,0.20335353,38910.0,38900.0,0.02593]
[1646573750398,0.00024413,38907.0,38899.0,0.064311]
[1646573750997,0.00024413,38907.0,38900.0,0.02593]
[1646573751398,0.05632115,38909.0,38900.0,0.02593]
[1646573751601,0.17608272,38904.0,38901.0,0.00011913]
[1646573752201,0.20356772,38902.0,38901.0,0.00011913]
[1646573752603,0.20356772,38902.0,38894.0,0.006]
[1646573752803,0.26174515,38902.0,38901.0,0.00011914]
[1646573753750,0.26174515,38902.0,38892.0,0.02593]
[1646573754049,0.17216923,38898.0,38896.0,0.007]
[1646573754253,0.17216923,38898.0,38897.0,0.14]
[1646573754649,0.17216923,38898.0,38897.0,0.11252861]
[1646573754849,0.17216923,38898.0,38896.0,0.007]
[1646573755049,0.17216923,38898.0,38897.0,0.11252572]
[1646573757403,0.3,38910.0,38897.0,0.11252572]
[1646573757600,0.00025232,38909.0,38898.0,0.51650769]
[1646573758399,0.19642692,38907.0,38899.0,0.064313]
[1646573758797,0.19642692,38907.0,38901.0,0.0002482]
[1646573759800,0.19642692,38907.0,38898.0,0.51650769]
[1646573759999,0.1760908,38906.0,38901.0,0.0002482]
[1646573760846,0.2315911,38906.0,38901.0,0.0002482]
[1646573761046,0.19642692,38907.0,38898.0,0.58682269]
[1646573761247,0.19642692,38907.0,38901.0,0.0002482]
[1646573762150,0.19642692,38907.0,38898.0,0.51650769]
[1646573762348,0.19642692,38907.0,38901.0,0.00023754]
[1646573763047,0.196249,38926.0,38902.0,1.15]
[1646573763048,0.001,38920.0,38902.0,1.15]
[1646573763254,0.001,38920.0,38907.0,0.15]
[1646573763452,0.11946197,38925.0,38918.0,1.15]
[1646573763453,0.0032,38925.0,38918.0,1.15]
[1646573763654,0.0011,38928.0,38919.0,1.74485869]
[1646573763857,0.04,38936.0,38920.0,0.94477184]
[1646573764052,0.04,38936.0,38925.0,0.81263]
[1646573764299,0.04,38936.0,38929.0,0.10824213]
[1646573764496,0.04,38936.0,38931.0,0.13417213]
[1646573764497,0.0001,38936.0,38931.0,0.13417213]
[1646573764705,0.0033,38938.0,38934.0,1.15]
[1646573764706,0.0001,38937.0,38934.0,1.15]
[1646573764897,0.0001,38937.0,38935.0,0.3]
[1646573765597,0.0001,38937.0,38933.0,0.3]
[1646573765796,0.0001,38937.0,38933.0,0.4]
[1646573765995,0.0001,38937.0,38936.0,0.14]
[1646573766195,0.0001,38937.0,38936.0,0.44]
[1646573767798,0.0001,38937.0,38936.0,0.54]
[1646573768052,0.0001,38937.0,38936.0,0.44]
[1646573768650,0.0001,38937.0,38936.0,0.3]
[1646573768853,0.00143721,38938.0,38936.0,0.3]
[1646573769054,0.0032,38945.0,38936.0,0.3]
[1646573769055,0.001,38946.0,38941.0,0.81263]
[1646573769252,0.001,38946.0,38942.0,0.42593]
[1646573769652,0.0001,38948.0,38946.0,1.15]
[1646573769855,0.0001,38948.0,38947.0,0.3]
[1646573770053,0.0001,38948.0,38947.0,0.41778754]
[1646573770454,0.0001,38948.0,38947.0,0.11778754]
[1646573770653,0.0001,38948.0,38947.0,0.11779359]
[1646573770854,0.0001,38948.0,38946.0,0.87686699]
[1646573771054,0.0001,38948.0,38947.0,0.41778451]
[1646573771258,0.0021,38950.0,38948.0,1.96263]
[1646573771259,0.00087217,38950.0,38948.0,1.96263]
[1646573771455,0.0021,38954.0,38949.0,2.38040997]
[1646573771655,0.0021,38954.0,38949.0,2.36263]
[1646573771909,0.0021,38954.0,38952.0,0.81263]
[1646573772107,0.0021,38954.0,38953.0,0.3]
[1646573772311,0.001,38971.0,38954.0,1.96263]
[1646573772512,0.001,38971.0,38956.0,0.064209]
[1646573772709,0.001,38971.0,38957.0,0.3]
[1646573772907,0.15646205,38971.0,38957.0,0.3]
[1646573773110,0.001,38971.0,38957.0,0.4]
[1646573773311,0.001,38971.0,38958.0,1.0867]
[1646573773513,0.001,38971.0,38962.0,0.81263]
[1646573773713,0.001,38976.0,38967.0,0.0138806]
[1646573773912,0.001,38976.0,38968.0,0.8275715]
[1646573774212,0.0011,38986.0,38977.0,1.1633704]
[1646573774414,0.0011,38986.0,38978.0,0.3]
[1646573774610,0.0011,38986.0,38972.0,0.01281]
[1646573774611,0.0011,38986.0,38976.0,0.128354]
[1646573774811,0.0011,38986.0,38972.0,0.01281]
[1646573775015,0.0011,38986.0,38972.0,0.31281]
[1646573775210,0.0011,38986.0,38973.0,0.15891952]
[1646573775411,0.0021,38995.0,38973.0,0.15891952]
[1646573775412,0.0021,38995.0,38976.0,1.15]
[1646573775666,0.02375949,39012.0,38994.0,0.2]
[1646573775867,0.76917,39011.0,38996.0,0.17527833]
[1646573776060,0.02375949,39012.0,38996.0,0.17527833]
[1646573776061,0.02375949,39012.0,38999.0,0.13722226]
[1646573776260,0.02375949,39012.0,39000.0,0.31440594]
[1646573776464,0.17926392,39022.0,39000.0,0.31440594]
[1646573776465,0.0011,39030.0,39007.0,0.0814415]
[1646573776662,0.0011,39030.0,39015.0,0.064112]
[1646573776865,0.0011,39030.0,39019.0,0.00025631]
[1646573777062,0.03028139,39038.0,39017.0,1.15]
[1646573777063,0.08011307,39038.0,39017.0,1.15]
[1646573777261,0.01155457,39038.0,39018.0,0.3]
[1646573777568,0.08011307,39038.0,39022.0,0.00025626]
[1646573777762,0.0685585,39033.0,39026.0,0.01734317]
[1646573777962,0.0685585,39033.0,39019.0,0.1]
[1646573777963,0.0635585,39027.0,39022.0,0.3]
[1646573778165,0.16155457,39038.0,39015.0,0.02029937]
[1646573778166,0.0635585,39024.0,39015.0,0.02029937]
[1646573778367,0.06895668,39017.0,39015.0,0.004]
[1646573778563,0.0635585,39016.0,39015.0,0.004]
[1646573779065,0.0635585,39016.0,39000.0,0.05259232]
[1646573779066,0.00169093,39011.0,39000.0,0.0380006]
[1646573779339,0.0635585,39008.0,39000.0,0.0380006]
[1646573779539,0.00169093,39011.0,39001.0,0.3]
[1646573779838,0.00169093,39011.0,39002.0,0.01281]
[1646573779839,0.0635585,39010.0,39002.0,0.01281]
[1646573780244,0.0635585,39010.0,39006.0,0.00025639]
[1646573780439,0.0635585,39010.0,39009.0,0.00025639]
[1646573780640,0.0635585,39010.0,39002.0,0.01281]
[1646573781042,0.0635585,39005.0,39002.0,0.01281]
[1646573781247,0.0635585,39003.0,39002.0,0.01281]
[1646573781445,0.0635585,39003.0,39002.0,0.15281]
[1646573781944,0.0635585,39003.0,39001.0,0.004]
[1646573781945,1.15,39002.0,39001.0,0.004]
[1646573782143,1.15,39002.0,38991.0,0.5]
[1646573782144,2.46518631,39002.0,38991.0,0.5]
[1646573782345,0.2135585,38992.0,38972.0,0.04]
[1646573782545,0.30993903,39001.0,38973.0,0.29211591]
[1646573782546,0.0635585,38981.0,38973.0,0.29211591]
[1646573782748,0.45,38998.0,38974.0,0.01529424]
[1646573782944,0.08662841,38997.0,38974.0,0.01529424]
[1646573783152,0.0635585,38985.0,38973.0,0.3082627]
[1646573783353,0.41645017,38999.0,38977.0,0.14]
[1646573783552,0.41645017,38999.0,38981.0,0.14]
[1646573783553,0.60983551,38999.0,38981.0,0.14]
[1646573783753,0.36838534,38999.0,38985.0,0.14]
[1646573783954,0.36838534,38999.0,38975.0,0.3]
[1646573783955,0.15,38996.0,38975.0,0.3]
[1646573784154,0.15,38998.0,38977.0,0.02593]
[1646573784353,0.06102219,38995.0,38978.0,0.01281]
[1646573784753,0.18855678,38988.0,38978.0,0.01281]
[1646573784955,0.064185,39002.0,38978.0,0.01281]
[1646573785156,0.14930622,38995.0,38977.0,0.4]
[1646573785360,0.93204316,39002.0,38977.0,0.3]
[1646573785361,0.02593,38992.0,38977.0,0.3]
[1646573785556,0.02593,38987.0,38974.0,0.00069378]
[1646573785758,0.75,38986.0,38972.0,0.04]
[1646573785957,0.15,38985.0,38973.0,0.006]
[1646573786256,0.15,38982.0,38973.0,0.006]
[1646573786455,0.17593,38982.0,38973.0,0.006]
[1646573787005,0.02593,38982.0,38973.0,0.006]
[1646573787304,2.00104051,38979.0,38972.0,0.04]
[1646573787503,0.15,38986.0,38976.0,0.14]
[1646573787704,0.15,38986.0,38973.0,0.3]
[1646573787910,0.00097455,38985.0,38973.0,0.3]
[1646573788503,0.02593,38990.0,38977.0,0.14]
[1646573788704,0.14597455,38994.0,38978.0,0.3]
[1646573788903,0.16711861,38986.0,38975.0,0.3]
[1646573789106,0.16552028,38980.0,38975.0,0.3]
[1646573789306,0.20292844,38981.0,38979.0,0.14]
[1646573789607,0.20292844,38981.0,38980.0,0.14]
[1646573789805,0.07025867,38983.0,38980.0,0.14]
[1646573790005,0.14597455,38986.0,38973.0,0.3]
[1646573790006,0.15097455,38986.0,38973.0,0.3]
[1646573790206,0.21229159,38985.0,38973.0,0.3]
[1646573790645,0.15097455,38986.0,38973.0,0.3]
[1646573790646,0.005,38986.0,38973.0,0.3]
[1646573791046,0.005,38986.0,38974.0,0.00402545]
[1646573791448,0.005,38986.0,38976.0,0.00402545]
[1646573791646,0.005,38986.0,38978.0,0.064178]
[1646573791848,0.00011457,38987.0,38978.0,0.064178]
[1646573792050,0.00011457,38987.0,38978.0,0.06820345]
[1646573792248,0.4957,39008.0,38978.0,0.064178]
[1646573792451,0.0002359,38987.0,38981.0,0.00023593]
[1646573792649,0.17375259,38985.0,38981.0,0.00023593]
[1646573792952,0.0002359,38987.0,38984.0,0.14]
[1646573793150,0.0002359,38987.0,38981.0,0.00023593]
[1646573793554,0.17574538,38979.0,38972.0,0.04]
[1646573793749,0.02593,38987.0,38972.0,0.04]
[1646573793750,0.17862237,38984.0,38972.0,0.04]
[1646573793950,0.17862237,38984.0,38977.0,0.004]
[1646573794800,0.2092865,38982.0,38977.0,0.004]
[1646573795001,0.30025181,38987.0,38968.0,0.064198]
[1646573795402,0.02593,38986.0,38968.0,0.064198]
[1646573795606,0.03872,38986.0,38968.0,0.064198]
[1646573795802,0.06666603,38981.0,38968.0,0.064198]
[1646573796003,0.18347643,38982.0,38968.0,0.064198]
[1646573796204,0.0128,38988.0,38968.0,0.064198]
[1646573796607,0.15,38992.0,38968.0,0.064198]
[1646573796608,0.33874,38989.0,38968.0,0.064198]
[1646573796805,0.02593,38989.0,38968.0,0.044198]
[1646573797012,0.09992486,38988.0,38968.0,0.044198]
[1646573797205,0.00012994,38987.0,38969.0,0.02593]
[1646573797409,0.00012994,38987.0,38974.0,0.064175]
[1646573797607,0.00012994,38987.0,38977.0,0.81263]
[1646573797907,0.00012994,38987.0,38978.0,0.1]
[1646573798190,0.00012994,38987.0,38975.0,0.4656]
[1646573798191,0.00051966,38994.0,38987.0,0.00025987]
[1646573798388,0.21012034,39001.0,38987.0,0.00025987]
[1646573798585,0.00051971,38994.0,38987.0,0.00025987]
[1646573798785,0.00051971,38994.0,38991.0,0.14]
[1646573798985,0.00051971,38994.0,38993.0,0.14]
[1646573799587,0.00051971,38994.0,38989.0,0.064156]
[1646573799588,0.06985789,38999.0,38990.0,0.3]
[1646573799985,0.06593,39008.0,38990.0,0.3]
[1646573800185,0.03933062,39008.0,38990.0,0.3]
[1646573800390,0.16834949,39001.0,38992.0,0.064159]
[1646573800788,0.16834949,39001.0,38989.0,0.006]
[1646573800984,0.16834949,39001.0,38989.0,0.306]
[1646573801185,0.16834949,39001.0,38989.0,0.3]
[1646573801388,0.16834949,39001.0,38992.0,0.12831319]
[1646573801587,0.03933062,39008.0,38994.0,0.128295]
[1646573801807,0.03933062,39008.0,38995.0,0.3]
[1646573802202,0.0616879,38998.0,38995.0,0.3]
[1646573802403,0.0616879,38998.0,38994.0,0.128295]
[1646573802709,0.15969858,38993.0,38988.0,0.007]
[1646573802909,0.07032048,38989.0,38988.0,0.007]
[1646573803103,0.07032048,38989.0,38988.0,0.1233656]
[1646573803309,2.68178245,39003.0,38988.0,0.3]
[1646573803507,0.15,39012.0,38987.0,0.00025987]
[1646573803508,0.00025216,38992.0,38987.0,0.00025987]
[1646573803705,0.00025216,38992.0,38989.0,0.8006116]
[1646573803905,0.00025216,38992.0,38991.0,0.14]
[1646573804305,0.16589075,39003.0,38991.0,0.00025651]
[1646573804504,0.16589075,39003.0,38990.0,0.3]
[1646573804505,0.16589075,39003.0,38995.0,0.00025651]
[1646573804705,0.00094278,38999.0,38990.0,0.3]
[1646573805120,0.00094278,38999.0,38991.0,0.0641568]
[1646573805306,0.00094278,38999.0,38993.0,0.064142]
[1646573805551,0.06709102,39012.0,38997.0,0.00025648]
[1646573805748,0.00094274,39002.0,38996.0,1.12686692]
[1646573805952,0.00094274,39002.0,39001.0,0.8020256]
[1646573806148,0.00094274,39002.0,39001.0,0.14]
[1646573806348,0.00094274,39002.0,39001.0,0.44]
[1646573806547,0.00094274,39002.0,39001.0,0.14]
[1646573806748,0.06205199,39013.0,39001.0,0.14]
[1646573806949,0.06205199,39013.0,39005.0,0.14]
[1646573806950,0.00094267,39009.0,39005.0,0.14]
[1646573807250,0.00094267,39009.0,39000.0,0.12826933]
[1646573807251,0.00094267,39009.0,39007.0,0.14]
[1646573808152,0.00023569,39009.0,39007.0,1.10039786]
[1646573808350,0.00023569,39009.0,39007.0,0.00025644]
[1646573808351,0.10355747,39008.0,39007.0,0.00025644]
[1646573809053,0.10355747,39008.0,39007.0,0.02501]
[1646573809304,1.15,39007.0,38990.0,0.128313]
[1646573809511,0.32593,39006.0,38992.0,0.5]
[1646573809703,0.05321824,38998.0,38992.0,0.5]
[1646573809903,0.03933062,39008.0,38993.0,1.08601293]
[1646573810106,0.03933062,39008.0,38997.0,0.9267]
[1646573810306,0.03933062,39008.0,39001.0,0.14]
[1646573810503,0.03933062,39008.0,39005.0,0.14]
[1646573810702,0.00023709,39002.0,39000.0,1.0867]
[1646573810904,0.00023709,39002.0,38994.0,0.3]
[1646573811206,0.00023709,39002.0,38998.0,0.14]
[1646573811403,0.00023709,39002.0,38995.0,0.06414508]
[1646573811404,0.18314539,39001.0,38995.0,0.06414508]
[1646573811605,0.18314539,39001.0,38990.0,0.01662343]
[1646573811606,0.17814539,39001.0,38993.0,0.12829796]
[1646573811805,0.17814539,39001.0,38991.0,0.3]
[1646573812004,0.17814539,39001.0,38991.0,0.808]
[1646573812005,0.07420416,38996.0,38991.0,0.808]
[1646573812404,0.07420416,38996.0,38991.0,0.508]
[1646573812806,0.07420416,38996.0,38992.0,0.5]
[1646573813075,0.07420416,38996.0,38991.0,0.508]
[1646573813276,0.07420416,38996.0,38991.0,0.5]
[1646573813675,0.07420416,38996.0,38990.0,0.3]
[1646573813875,0.07420416,38996.0,38986.0,0.94094697]
[1646573814072,0.07420416,38996.0,38987.0,0.3]
[1646573814073,0.2142749,38991.0,38987.0,0.3]
[1646573814274,0.2142749,38991.0,38990.0,0.1156658]
[1646573814674,0.2142749,38991.0,38985.0,0.008]
[1646573814675,0.20671686,38986.0,38985.0,0.008]
[1646573814876,1.15,38990.0,38985.0,0.0323342]
[1646573815078,0.2142749,38991.0,38985.0,0.008]
[1646573815277,0.2142749,38991.0,38981.0,0.064181]
[1646573815476,0.17343544,38984.0,38981.0,0.06441787]
[1646573815675,0.00023683,38989.0,38983.0,0.0243342]
[1646573815875,0.00023683,38989.0,38987.0,0.0243342]
[1646573816075,0.00023683,38989.0,38988.0,0.0243342]
[1646573816480,0.01276,38993.0,38988.0,0.0243342]
[1646573816675,0.00023634,38990.0,38986.0,0.06417]
[1646573816903,0.00023634,38990.0,38989.0,0.01282676]
[1646573817107,0.00023634,38990.0,38986.0,0.19248622]
[1646573817804,0.05638574,38994.0,38986.0,0.19248622]
[1646573817805,0.05638574,38994.0,38989.0,0.01282709]
[1646573818003,0.05638574,38994.0,38993.0,0.0243342]
[1646573818205,0.01269,39001.0,38993.0,0.0243342]
[1646573818404,0.1882017,38997.0,38991.0,0.3]
[1646573818604,0.1882017,38997.0,38990.0,0.064165]
[1646573819007,0.1882017,38997.0,38986.0,0.3]
[1646573819206,0.05335577,38991.0,38986.0,0.4]
[1646573819405,0.05335577,38991.0,38986.0,0.1]
[1646573819609,0.20260407,38991.0,38986.0,0.464165]
[1646573819807,0.20260407,38991.0,38982.0,0.11628601]
[1646573820007,0.20260407,38991.0,38983.0,0.008]
[1646573820206,0.20260407,38991.0,38983.0,0.303]
[1646573820408,0.0002446,38990.0,38983.0,0.003]
[1646573820675,0.16569905,38984.0,38983.0,0.003]
[1646573820874,0.16569905,38984.0,38983.0,0.0243342]
[1646573821078,0.16569905,38984.0,38981.0,0.00024466]
[1646573821079,0.09993487,38982.0,38981.0,0.00024466]
[1646573821274,0.09993487,38982.0,38970.0,0.8]
[1646573821275,0.19999999,38980.0,38970.0,0.8]
[1646573821475,0.16092443,38977.0,38965.0,0.01703681]
[1646573821678,0.06928603,38977.0,38969.0,0.0243342]
[1646573821874,0.12586487,38981.0,38973.0,0.0243342]
[1646573821875,0.15,38981.0,38973.0,0.0243342]
[1646573822178,0.15,38981.0,38971.0,0.3]
[1646573822373,0.15,38981.0,38969.0,0.3]
[1646573822574,0.19746093,38978.0,38969.0,0.3]
[1646573822875,0.07206679,38977.0,38975.0,0.00024466]
[1646573823074,0.15,38977.0,38976.0,0.0243342]
[1646573823673,0.35781885,38977.0,38976.0,0.0243342]
[1646573824075,0.15,38977.0,38976.0,0.0243342]
[1646573825005,0.01278,38981.0,38976.0,0.0243342]
[1646573825206,0.15,38984.0,38975.0,0.06441654]
[1646573825207,0.01276,38983.0,38975.0,0.06441654]
[1646573825407,0.15023577,38989.0,38976.0,0.3]
[1646573825606,0.00023577,38989.0,38978.0,0.064181]
[1646573826007,0.05607194,38989.0,38982.0,0.0243342]
[1646573826205,0.21100264,38991.0,38986.0,0.0243342]
[1646573826408,0.0002358,38989.0,38981.0,0.00023584]
[1646573826607,0.16903108,38985.0,38981.0,0.00023584]
[1646573827006,0.0002358,38989.0,38984.0,0.0243342]
[1646573827207,0.01268,38993.0,38988.0,0.0243342]
[1646573827407,0.01268,38993.0,38981.0,0.3]
[1646573827408,0.22356619,38993.0,38985.0,0.128336]
[1646573827608,0.09611576,38998.0,38987.0,0.6]
[1646573827807,0.09611576,38998.0,38988.0,0.3]
[1646573828050,0.15,38996.0,38986.0,0.3]
[1646573828248,0.30875575,38999.0,38982.0,0.01553609]
[1646573828249,1.17593,38995.0,38982.0,0.01553609]
[1646573828450,1.17593,38995.0,38970.0,0.1]
[1646573828451,0.09611576,38983.0,38970.0,0.1]
[1646573828651,0.15,38980.0,38971.0,1.0]
[1646573829149,0.02593,38984.0,38963.0,0.43584403]
[1646573829150,1.7802241,38984.0,38967.0,0.06418828]
[1646573829354,0.16274839,38990.0,38973.0,0.01446918]
[1646573829552,0.16274839,38990.0,38974.0,0.81263]
[1646573829949,0.15,38987.0,38973.0,0.01446918]
[1646573830150,0.15,38987.0,38971.0,0.7867]
[1646573830351,0.07096617,38979.0,38972.0,0.02593]
[1646573830548,0.07096617,38979.0,38971.0,0.02593]
[1646573830749,0.07096617,38979.0,38970.0,0.164188]
[1646573831150,0.07096617,38979.0,38974.0,0.00025183]
[1646573831349,0.07096617,38979.0,38978.0,0.0243342]
[1646573831548,0.07096617,38979.0,38978.0,0.0128289]
[1646573832006,0.06596617,38979.0,38978.0,0.0128289]
[1646573832202,0.06596617,38979.0,38977.0,0.00025182]
[1646573832405,0.15,38984.0,38977.0,0.00025182]
[1646573833003,0.29611575,38986.0,38977.0,0.00025182]
[1646573833303,0.29611575,38986.0,38974.0,0.064181]
[1646573833304,0.15,38981.0,38974.0,0.064181]
[1646573833505,0.15,38983.0,38979.0,0.00025181]
[1646573834104,0.09611576,38986.0,38979.0,0.00025181]
[1646573834304,0.15,38987.0,38979.0,0.00025181]
[1646573834507,0.07123964,38984.0,38975.0,0.3]
[1646573834709,0.15,38987.0,38981.0,0.00023515]
[1646573835106,0.15,38990.0,38981.0,0.00023515]
[1646573835307,0.02593,38993.0,38981.0,0.00023515]
[1646573835569,0.15,38987.0,38981.0,0.00023515]
[1646573835764,0.21904562,38987.0,38979.0,0.3]
[1646573835968,0.21904562,38987.0,38985.0,0.00023513]
[1646573836564,0.21404562,38987.0,38985.0,0.00023513]
[1646573836764,0.20904562,38987.0,38985.0,0.00023513]
[1646573837068,0.20904562,38987.0,38984.0,0.00023514]
[1646573837764,0.06404562,38987.0,38984.0,0.00023514]
[1646573837965,0.20904562,38987.0,38984.0,0.00023514]
[1646573838165,0.20904562,38987.0,38979.0,0.3]
[1646573838365,0.20904562,38987.0,38984.0,0.00023626]
[1646573838565,0.06404562,38987.0,38984.0,0.00023626]
[1646573839409,0.31828049,38992.0,38978.0,0.059685]
[1646573839614,0.145,38988.0,38984.0,0.00023626]
[1646573840011,0.17737082,38985.0,38984.0,0.00023626]
[1646573840210,0.145,38988.0,38984.0,0.00023626]
[1646573840608,0.145,38988.0,38983.0,0.00023626]
[1646573840609,0.16068336,38986.0,38983.0,0.00023626]
[1646573840812,0.145,38984.0,38983.0,0.00023626]
[1646573841014,0.34499999,38984.0,38983.0,0.00023626]
[1646573841211,0.31994603,38984.0,38983.0,0.00023626]
[1646573841613,0.145,38984.0,38983.0,0.00023626]
[1646573841811,0.145,38984.0,38972.0,0.7867]
[1646573842012,0.145,38984.0,38982.0,0.00023619]
[1646573842216,0.31268,38988.0,38982.0,0.00023619]
[1646573842217,0.145,38988.0,38982.0,0.00023619]
[1646573842410,0.0261661,38996.0,38982.0,0.00023619]
[1646573842411,0.145,38995.0,38982.0,0.00023619]
[1646573842613,0.15,38995.0,38982.0,0.00023619]
[1646573842813,0.16274,38995.0,38975.0,0.3]
[1646573843064,0.18116633,38986.0,38975.0,0.3]
[1646573843263,0.145,38985.0,38975.0,0.3]
[1646573843665,0.06538765,38983.0,38975.0,0.3]
[1646573843862,0.06538765,38983.0,38979.0,0.02367643]
[1646573844062,0.06538765,38983.0,38975.0,0.3]
[1646573844362,0.06538765,38983.0,38974.0,0.3]
[1646573844562,0.06538765,38983.0,38971.0,1.1867]
[1646573844764,0.24364995,38983.0,38972.0,0.5]
[1646573844963,0.24364995,38983.0,38973.0,0.3]
[1646573845163,0.24364995,38983.0,38973.0,0.4]
[1646573845562,0.24364995,38983.0,38976.0,0.00010776]
[1646573846262,0.06538765,38983.0,38976.0,0.00010776]
[1646573846465,0.06538765,38983.0,38974.0,0.7867]
[1646573846663,0.06538765,38983.0,38978.0,0.00023638]
[1646573847312,1.15,38982.0,38974.0,0.064183]
[1646573847514,1.15,38982.0,38970.0,0.5]
[1646573847515,0.145,38975.0,38970.0,0.5]
[1646573847811,0.05469937,38974.0,38970.0,0.5]
[1646573848009,0.05469937,38974.0,38973.0,0.02367643]
[1646573848208,0.19969937,38974.0,38973.0,0.02367643]
[1646573848410,0.60655294,38974.0,38973.0,0.02367643]
[1646573848608,0.80655293,38974.0,38973.0,0.02367643]
[1646573850011,0.75185356,38974.0,38973.0,0.02367643]
[1646573850210,0.55475033,38974.0,38973.0,0.02367643]
[1646573850411,0.35475034,38974.0,38973.0,0.02367643]
[1646573850680,0.145,38974.0,38973.0,0.02367643]
[1646573851078,0.145,38974.0,38972.0,0.00010759]
[1646573851281,0.145,38974.0,38963.0,0.4183]
[1646573851282,1.15,38972.0,38963.0,0.4183]
[1646573851485,1.15,38972.0,38956.0,0.01282]
[1646573851486,0.19999999,38963.0,38956.0,0.01282]
[1646573851683,0.19999999,38963.0,38951.0,0.5]
[1646573851684,0.16228126,38957.0,38951.0,0.5]
[1646573852283,0.39343111,38956.0,38951.0,0.5]
[1646573852484,0.39343111,38956.0,38955.0,0.02367643]
[1646573852485,0.2675011,38956.0,38955.0,0.02367643]
[1646573852695,0.31282,38961.0,38955.0,0.02367643]
[1646573852696,0.064254,38961.0,38956.0,0.45]
[1646573852885,0.533278,38975.0,38958.0,0.7867]
[1646573852886,0.08355,38975.0,38958.0,0.7867]
[1646573853083,0.08355,38975.0,38960.0,0.7867]
[1646573853282,0.08355,38975.0,38961.0,0.3]
[1646573853484,0.08355,38975.0,38957.0,0.01282]
[1646573853684,0.08355,38975.0,38952.0,0.01395]
[1646573853685,0.16206985,38967.0,38952.0,0.4]
[1646573853882,0.16206985,38967.0,38952.0,0.1]
[1646573854084,0.18799985,38967.0,38949.0,0.3]
[1646573854327,0.19999999,38961.0,38953.0,0.007]
[1646573854512,0.02593,38965.0,38953.0,0.007]
[1646573854513,0.02593,38962.0,38953.0,0.007]
[1646573854709,0.21423472,38959.0,38953.0,0.007]